Workbook

Sheet Sheet1
A1: 2016-2017学年度上学期九月份班级文化建设检查统计表
A2: 七年级 | B2: 平均分 | C2: 八年级 | D2: 平均分 | E2: 九年级 | F2: 平均分
A3: 1 | B3: =AVERAGE([1]Sheet1!B14:I14) -> 55.33 | C3: 1 | D3: 58.50 | E3: 1 | F3: =AVERAGE([3]Sheet1!B22:J22) -> 56.43
A4: 2 | B4: =AVERAGE([1]Sheet1!B5:I5) -> 57.67 | C4: 2 | D4: =AVERAGE([2]Sheet1!B24:I24) -> 49.67 | E4: 2 | F4: =AVERAGE([3]Sheet1!B5:J5) -> 58.86
A5: 3 | B5: =AVERAGE([1]Sheet1!B13:I13) -> 55.67 | C5: 3 | D5: =AVERAGE([2]Sheet1!B17:I17) -> 56.67 | E5: 3 | F5: =AVERAGE([3]Sheet1!B10:J10) -> 58.14
A6: 4 | B6: =AVERAGE([1]Sheet1!B17:I17) -> 53.50 | C6: 4 | D6: =AVERAGE([2]Sheet1!B11:I11) -> 57.67 | E6: 4 | F6: =AVERAGE([3]Sheet1!B8:J8) -> 58.43
A7: 5 | B7: =AVERAGE([1]Sheet1!B8:I8) -> 56.33 | C7: 5 | D7: =AVERAGE([2]Sheet1!B18:I18) -> 56.50 | E7: 5 | F7: =AVERAGE([3]Sheet1!B4:J4) -> 59.00
A8: 6 | B8: =AVERAGE([1]Sheet1!B6:I6) -> 57.67 | C8: 6 | D8: =AVERAGE([2]Sheet1!B19:I19) -> 55.50 | E8: 6 | F8: =AVERAGE([3]Sheet1!B3:J3) -> 59.43
A9: 7 | B9: =AVERAGE([1]Sheet1!B16:I16) -> 54.50 | C9: 7 | D9: =AVERAGE([2]Sheet1!B14:I14) -> 57.00 | E9: 7 | F9: =AVERAGE([3]Sheet1!B11:J11) -> 58.14
A10: 8 | B10: =AVERAGE([1]Sheet1!B19:I19) -> 53.17 | C10: 8 | D10: =AVERAGE([2]Sheet1!B7:I7) -> 58.33 | E10: 8 | F10: =AVERAGE([3]Sheet1!B12:J12) -> 58.00
A11: 9 | B11: =AVERAGE([1]Sheet1!B21:I21) -> 52.83 | C11: 9 | D11: =AVERAGE([2]Sheet1!B20:I20) -> 55.17 | E11: 9 | F11: =AVERAGE([3]Sheet1!B24:J24) -> 56.00
A12: 10 | B12: =AVERAGE([1]Sheet1!B9:I9) -> 56.17 | C12: 10 | D12: =AVERAGE([2]Sheet1!B8:I8) -> 58.33 | E12: 10 | F12: =AVERAGE([3]Sheet1!B13:J13) -> 57.86
A13: 11 | B13: =AVERAGE([1]Sheet1!B23:I23) -> 52.17 | C13: 11 | D13: =AVERAGE([2]Sheet1!B22:I22) -> 55.00 | E13: 11 | F13: =AVERAGE([3]Sheet1!B21:J21) -> 56.57
A14: 12 | B14: =AVERAGE([1]Sheet1!B12:I12) -> 55.83 | C14: 12 | D14: =AVERAGE([2]Sheet1!B15:I15) -> 56.83 | E14: 12 | F14: =AVERAGE([3]Sheet1!B16:J16) -> 57.43
A15: 13 | B15: =AVERAGE([1]Sheet1!B22:I22) -> 52.67 | C15: 13 | D15: =AVERAGE([2]Sheet1!B12:I12) -> 57.67 | E15: 13 | F15: =AVERAGE([3]Sheet1!B7:J7) -> 58.57
A16: 14 | B16: =AVERAGE([1]Sheet1!B10:I10) -> 56.17 | C16: 14 | D16: =AVERAGE([2]Sheet1!B21:I21) -> 55.17 | E16: 14 | F16: =AVERAGE([3]Sheet1!B25:J25) -> 55.57
A17: 15 | B17: =AVERAGE([1]Sheet1!B24:I24) -> 50.83 | C17: 15 | D17: =AVERAGE([2]Sheet1!B9:I9) -> 58.17 | E17: 15 | F17: =AVERAGE([3]Sheet1!B23:J23) -> 56.29
A18: 16 | B18: =AVERAGE([1]Sheet1!B4:I4) -> 58.33 | C18: 16 | D18: =AVERAGE([2]Sheet1!B3:I3) -> 58.83 | E18: 16 | F18: =AVERAGE([3]Sheet1!B9:J9) -> 58.43
A19: 17 | B19: =AVERAGE([1]Sheet1!B3:I3) -> 59.17 | C19: 17 | D19: =AVERAGE([2]Sheet1!B23:I23) -> 51.67 | E19: 17 | F19: =AVERAGE([3]Sheet1!B6:J6) -> 58.86
A20: 18 | B20: =AVERAGE([1]Sheet1!B15:I15) -> 54.57 | C20: 18 | D20: =AVERAGE([2]Sheet1!B16:I16) -> 56.83 | E20: 18 | F20: =AVERAGE([3]Sheet1!B19:J19) -> 56.71
A21: 19 | B21: =AVERAGE([1]Sheet1!B7:I7) -> 57.00 | C21: 19 | D21: =AVERAGE([2]Sheet1!B6:I6) -> 58.50 | E21: 19 | F21: =AVERAGE([3]Sheet1!B18:J18) -> 57.00
A22: 20 | B22: =AVERAGE([1]Sheet1!B11:I11) -> 56.17 | C22: 20 | D22: =AVERAGE([2]Sheet1!B10:I10) -> 57.83 | E22: 20 | F22: =AVERAGE([3]Sheet1!B15:J15) -> 57.71
A23: 21 | B23: =AVERAGE([1]Sheet1!B20:I20) -> 53.00 | C23: 21 | D23: =AVERAGE([2]Sheet1!B13:I13) -> 57.33 | E23: 21 | F23: =AVERAGE([3]Sheet1!B14:J14) -> 57.86
A24: 22 | B24: =AVERAGE([1]Sheet1!B18:I18) -> 53.50 | C24: 22 | D24: =AVERAGE([2]Sheet1!B4:I4) -> 58.83 | E24: 22 | F24: =AVERAGE([3]Sheet1!B20:J20) -> 56.71
E25: 23 | F25: =AVERAGE([3]Sheet1!B17:J17) -> 57.29

Sheet Sheet2

Sheet Sheet3
